bitfinex-derivatives/quotes_ETHF0:USTF0_20240830
["timestamp","ask_amount","ask_price","bid_price","bid_amount"]
[1725023879403,3.97802,2527.3,2527.2,0.39563]
[1725023879603,0.39563,2527.2,2527.1,1.12233]
[1725023880098,45.75291442,2527.4,2527.2,0.39563]
[1725023880099,3.96389442,2527.4,2527.2,0.39563]
[1725023880303,4.35299442,2527.4,2527.2,0.39563]
[1725023880510,0.39561,2527.3,2527.2,0.39563]
[1725023881107,4.35299442,2527.4,2527.1,1.12234]
[1725023881108,0.39563,2527.2,2527.1,1.12234]
[1725023881303,4.35299442,2527.4,2526.9,0.00593401]
[1725023881304,0.39566,2527.0,2526.9,0.00593401]
[1725023881511,1.38482,2527.0,2526.9,0.00593401]
[1725023881708,5.73152,2527.0,2526.9,0.00593401]
[1725023882304,5.73152,2527.0,2526.4,7.527]
[1725023882305,0.39574,2526.5,2526.4,4.107]
[1725023882912,0.77274,2526.5,2526.4,4.107]
[1725023884812,0.98925,2526.8,2526.5,0.39573]
[1725023885016,0.98925,2526.8,2526.4,7.527]
[1725023885017,0.98925,2526.8,2526.4,7.92275]
[1725023885207,0.39573,2526.6,2526.4,7.92275]
[1725023885403,0.39572,2526.7,2526.5,0.39573]
[1725023885602,0.39572,2526.7,2526.5,0.39574]
[1725023886217,1.34581,2526.9,2526.6,0.39572]
[1725023886218,0.3957,2526.8,2526.6,0.39572]
[1725023886819,0.39571,2526.7,2526.6,0.39572]
[1725023887012,0.3957,2526.8,2526.7,0.39571]
[1725023887419,0.39571,2526.7,2526.6,0.39571]
[1725023887621,0.39571,2526.7,2526.6,0.39572]
[1725023888808,0.3566,2526.9,2526.4,4.76389]
[1725023889010,0.3957,2526.8,2526.7,0.3957]
[1725023889212,0.75229,2526.9,2526.8,0.39569]
[1725023889908,0.39567,2527.0,2526.9,0.39566]
[1725023891717,0.39566,2527.1,2527.0,0.39565]
[1725023891916,0.39567,2527.0,2526.9,0.39566]
[1725023892119,0.39565,2527.1,2527.0,0.39565]
[1725023892411,0.98911,2527.2,2527.1,0.39564]
[1725023892412,0.39564,2527.2,2527.1,0.39564]
[1725023892727,3.96389442,2527.4,2527.2,0.39562]
[1725023892919,0.39562,2527.3,2527.2,0.39562]
[1725023893314,4.35950442,2527.4,2527.3,0.39561]
[1725023893923,4.35949442,2527.4,2527.3,0.39561]
[1725023894118,4.35949442,2527.4,2527.3,0.77361]
[1725023895116,3.96389442,2527.4,2527.3,0.77361]
[1725023895327,4.35949442,2527.4,2527.3,0.77361]
[1725023895723,3.96389442,2527.4,2527.3,0.77361]
[1725023896023,4.35949442,2527.4,2527.3,0.77361]
[1725023896223,5.34850442,2527.4,2527.3,0.378]
[1725023898126,4.35949442,2527.4,2527.3,0.378]
[1725023898522,0.39561,2527.3,2527.2,3.60343]
[1725023902528,0.00589442,2527.4,2527.3,1.38465]
[1725023902720,0.7724,2528.1,2527.6,0.98892]
[1725023903035,41.1955,2528.1,2528.0,0.39551]
[1725023903529,0.39551,2528.0,2527.9,0.39552]
[1725023903726,0.39552,2527.9,2527.8,0.39553]
[1725023903932,0.39554,2527.8,2527.7,0.00593401]
[1725023904236,2.75554,2527.8,2527.7,0.00593401]
[1725023904425,16.07423258,2527.8,2527.7,0.00593401]
[1725023904723,10.07423258,2527.8,2527.7,0.00593401]
[1725023905529,0.77784,2527.8,2527.7,0.00593401]
[1725023907127,0.3823,2527.8,2527.7,0.40148401]
[1725023907324,0.77784,2527.8,2527.7,0.40148401]
[1725023907519,41.78874,2528.1,2527.8,0.39553]
[1725023907719,40.8,2528.1,2527.8,0.3594]
[1725023907932,0.39551,2528.0,2527.8,0.3594]
[1725023908440,0.39551,2528.0,2527.9,0.39552]
[1725023908926,41.1955,2528.1,2528.0,0.39551]
[1725023909131,5.26411401,2528.2,2528.1,0.39549]
[1725023909327,0.79211401,2528.2,2528.1,0.39549]
[1725023909531,0.39663401,2528.2,2528.1,0.39549]
[1725023910233,0.79210401,2528.2,2528.1,0.39549]
[1725023910543,0.79210401,2528.2,2528.0,3.5632]
[1725023910544,0.39549,2528.1,2528.0,3.5632]
[1725023910728,0.39549,2528.1,2528.0,3.95871]
[1725023913741,0.39549,2528.1,2528.0,3.5632]
[1725023915133,0.39549,2528.1,2528.0,3.95871]
[1725023916925,0.39549,2528.1,2528.0,0.75091]
[1725023918334,0.79211401,2528.2,2528.0,0.3554]
[1725023918551,0.40140401,2528.2,2528.1,0.39549]
[1725023919238,0.00593401,2528.2,2528.1,0.39549]
[1725023920940,0.40140401,2528.2,2528.1,0.39549]
[1725023921335,0.40140401,2528.2,2528.0,0.3554]
[1725023921336,0.39549,2528.1,2528.0,0.75089]
[1725023921940,5.34022,2528.1,2528.0,0.3554]
[1725023922140,0.39551,2528.0,2527.9,0.39552]
[1725023922329,0.39552,2527.9,2527.8,0.75493]
[1725023922738,1.38433,2527.9,2527.8,0.75493]
[1725023923136,0.39552,2527.9,2527.8,0.75493]
[1725023924143,1.38433,2527.9,2527.8,0.3594]
[1725023924741,1.38433,2527.9,2527.8,0.75494]
[1725023924742,0.39552,2527.9,2527.8,0.75494]
[1725023927243,1.38433,2527.9,2527.8,0.3594]
[1725023927649,1.38433,2527.9,2527.8,0.75494]
[1725023928552,0.39552,2527.9,2527.8,0.75494]
[1725023932549,1.109,2528.1,2527.8,0.3594]
[1725023932756,0.00593401,2528.2,2527.9,4.40881]
[1725023932956,0.00593401,2528.2,2528.1,0.39549]
[1725023933143,0.00593401,2528.2,2528.1,3.81549]
[1725023933345,0.00593401,2528.2,2528.1,8.37101865]
[1725023933551,3.60323,2528.6,2528.1,14.96425865]
[1725023933748,3.60322,2528.6,2528.5,0.39543]
[1725023933946,3.60322,2528.6,2528.4,0.39543]
[1725023934147,3.60322,2528.6,2528.5,0.3839]
[1725023934646,3.2078,2528.6,2528.5,0.77933]
[1725023935658,0.75989,2528.8,2528.5,0.77933]
[1725023935862,0.75989,2528.8,2528.6,0.39541]
[1725023936346,0.3954,2528.7,2528.5,1.14122]
[1725023936542,0.3954,2528.7,2528.5,0.77932]
[1725023937255,0.75989,2528.8,2528.6,0.39541]
[1725023937447,0.39539,2528.8,2528.6,0.39541]
[1725023937642,40.8,2528.9,2528.7,0.3705]
[1725023937842,0.39537,2528.9,2528.7,0.76589]
[1725023938143,0.39538,2528.8,2528.7,0.3705]
[1725023938349,1.74131,2529.0,2528.5,0.77931]
[1725023938553,0.3954,2528.7,2528.6,0.60050426]
[1725023938944,0.3954,2528.7,2528.5,0.77931]
[1725023939142,0.39539,2528.8,2528.6,0.39541]
[1725023939351,0.3954,2528.7,2528.5,0.77932]
[1725023939751,0.39539,2528.8,2528.6,0.99590545]
[1725023939951,0.39539,2528.8,2528.6,0.39541]
[1725023940152,0.39539,2528.8,2528.7,0.3954]
[1725023940353,0.39537,2528.9,2528.8,0.39538]
[1725023940557,41.56936,2529.0,2528.8,0.39538]
[1725023940855,3.5806,2529.3,2529.1,0.39533]
[1725023941059,3.955,2529.5,2529.2,3.81532]
[1725023941261,0.39524,2529.7,2529.5,0.39526]
[1725023941556,0.39524,2529.7,2529.4,3.42]
[1725023941557,0.39526,2529.6,2529.4,3.42]
[1725023941743,3.2078,2529.9,2529.4,3.42]
[1725023941947,0.39524,2529.7,2529.5,0.39526]
[1725023942143,0.39527,2529.6,2529.4,3.81528]
[1725023942552,0.98803,2529.9,2529.4,3.42]
[1725023942863,0.98803,2529.9,2529.4,3.81528]
[1725023943158,4.45427076,2529.8,2529.4,3.81528]
[1725023943355,4.45427076,2529.8,2529.4,3.42]
[1725023943661,4.45427076,2529.8,2529.4,3.81528]
[1725023943954,4.45427076,2529.8,2529.5,0.39527]
[1725023943955,0.39524,2529.7,2529.5,0.39527]
[1725023944162,4.45427076,2529.8,2529.3,0.3596]
[1725023944163,0.39529,2529.4,2529.3,0.3596]
[1725023944946,0.3953,2529.3,2529.2,3.2078]
[1725023945457,0.39532,2529.2,2529.1,0.00593401]
[1725023945752,0.39531,2529.3,2529.1,3.82126401]
[1725023946148,0.3794,2529.5,2529.2,0.39531]
[1725023946149,0.39529,2529.4,2529.2,0.39531]
[1725023946459,0.39528,2529.5,2529.3,3.81529]
[1725023946652,0.3884,2529.7,2529.1,0.00593401]
[1725023946851,0.39532,2529.2,2529.1,0.00593401]
[1725023947657,1.38362,2529.2,2529.1,0.00593401]
[1725023947962,0.39532,2529.2,2529.1,0.00593401]
[1725023948158,0.3884,2529.3,2529.1,0.00593401]
[1725023948360,0.39529,2529.4,2529.3,0.3953]
[1725023948957,0.3953,2529.3,2529.2,0.3619]
[1725023949268,0.3953,2529.3,2529.2,4.17721]
[1725023949453,0.3953,2529.4,2529.2,4.17721]
[1725023949757,0.3953,2529.3,2529.2,3.7819]
[1725023950963,0.3953,2529.3,2529.2,4.17722]
[1725023951258,0.3953,2529.3,2529.2,3.7819]
[1725023951957,0.39531,2529.3,2529.1,0.38043401]
[1725023952157,0.98824,2529.4,2529.3,0.3953]
[1725023952158,0.3953,2529.4,2529.3,0.3953]
[1725023952365,1.37657,2529.6,2529.2,4.17871]
[1725023952366,0.3953,2529.3,2529.2,4.17871]
[1725023952660,0.32688136,2529.3,2529.2,4.17871]
[1725023952957,0.72218136,2529.3,2529.2,4.17871]
[1725023953163,0.32688136,2529.3,2529.2,8.13231]
[1725023953765,0.39523,2529.8,2529.3,4.94186]
[1725023953960,0.39523,2529.8,2529.7,3.42]
[1725023954160,0.39523,2529.8,2529.7,3.02119141]
[1725023954467,0.39523,2529.8,2529.5,3.2078]
[1725023954468,0.39526,2529.6,2529.5,3.42]
[1725023954659,0.39526,2529.6,2529.5,3.81527]
[1725023954855,0.3764,2529.7,2529.6,0.39526]
[1725023955367,0.39522,2529.9,2529.5,3.42]
[1725023955567,0.39522,2529.9,2529.8,0.39522]
[1725023955769,0.39521,2529.9,2529.5,3.42]
[1725023955969,0.39521,2529.9,2529.8,0.39522]
[1725023956561,41.1613,2530.0,2529.9,0.39521]
[1725023956868,0.39519,2530.1,2529.9,3.8152]
[1725023957064,0.7179,2530.2,2530.0,0.39519]
[1725023957272,0.39518,2530.1,2530.0,0.39519]
[1725023957467,41.5179,2530.2,2530.0,0.39518]
[1725023957667,1.11307,2530.2,2530.1,0.39518]
[1725023957871,0.39518,2530.1,2530.0,0.39519]
[1725023958070,0.39519,2530.0,2529.9,3.8152]
[1725023958770,0.39519,2530.1,2529.9,3.8152]
[1725023958971,0.39519,2530.1,2530.0,0.39519]
[1725023960060,0.39519,2530.1,2529.9,3.42]
[1725023960061,0.39517,2530.2,2529.9,3.42]
[1725023960259,0.39516,2530.3,2530.2,0.39516]
[1725023960464,0.3718,2530.4,2529.9,7.61582]
[1725023960465,0.76694,2530.4,2529.9,7.61582]
[1725023960659,0.3718,2530.4,2530.2,0.39515]
[1725023961163,0.39515,2530.3,2530.2,0.39515]
[1725023961668,0.39517,2530.2,2530.1,0.39517]
[1725023961870,1.35964,2530.4,2530.2,0.39516]
[1725023961871,0.39516,2530.3,2530.2,0.39516]
[1725023963672,0.39517,2530.2,2530.1,0.39517]
[1725023964177,0.39519,2530.1,2530.0,0.39518]
[1725023965066,0.98788,2530.3,2530.1,0.39517]
[1725023965067,0.39517,2530.2,2530.1,0.39517]
[1725023965964,0.39515,2530.3,2530.2,0.39515]
[1725023967775,0.39516,2530.2,2530.1,3.81516]
[1725023971468,1.35964,2530.4,2529.9,3.2078]
[1725023971469,0.39519,2530.0,2529.9,6.6278]
[1725023971982,0.39519,2530.0,2529.9,3.42]
[1725023972181,0.39519,2530.0,2529.9,3.81521]
[1725023972480,0.98791,2530.3,2530.0,0.39518]
[1725023972481,0.39519,2530.1,2530.0,0.39518]
[1725023972873,0.39517,2530.2,2530.1,0.39516]
[1725023973079,0.39517,2530.2,2530.1,3.81516]
[1725023973969,0.39515,2530.3,2530.2,0.39515]
[1725023974778,0.39515,2530.3,2530.2,4.70835]
[1725023975375,0.39514,2530.4,2530.3,0.39513]
[1725023975577,0.39514,2530.4,2530.3,3.81513]
[1725023979275,0.39514,2530.4,2530.1,0.7496]
[1725023979276,4.1956,2530.5,2530.1,3.8077]
[1725023979476,0.39515,2530.4,2530.3,0.39514]
[1725023980976,3.2078,2530.5,2530.4,0.39513]
[1725023981486,1.143,2530.7,2530.6,0.3951]
[1725023981788,0.7566,2530.7,2530.6,0.3951]
[1725023984385,1.74432,2530.7,2530.6,0.3951]
[1725023985581,0.3951,2530.6,2530.5,3.81511]
[1725023985787,0.7705,2530.6,2530.5,3.81511]
[1725023987086,1.75825,2530.6,2530.5,3.81511]
[1725023987290,1.3829,2530.5,2530.4,0.40105401]
[1725023987485,1.3829,2530.5,2530.4,0.6037706]
[1725023987486,2.37069,2530.5,2530.4,0.6037706]
[1725023987686,1.3829,2530.5,2530.4,0.00593401]
[1725023987895,1.3829,2530.5,2530.4,0.60367537]
[1725023988093,1.3829,2530.5,2530.4,0.00593401]
[1725023990194,1.3829,2530.5,2530.4,0.40106401]
[1725023990394,1.3829,2530.5,2530.4,5.30872618]
[1725023990395,0.39511,2530.5,2530.4,5.30872618]
[1725023990598,0.39511,2530.5,2530.4,5.66762618]
[1725023992398,0.39511,2530.6,2530.5,0.3951]
[1725023992596,0.39511,2530.6,2530.5,5.27716575]
[1725023992799,0.39511,2530.6,2530.5,5.27708081]
[1725023995800,0.39511,2530.6,2530.5,5.2775177]
[1725023997000,0.39508,2530.7,2530.6,0.39508]
[1725023997191,3.60288,2530.8,2530.7,0.39508]
[1725023997397,3.60288,2530.8,2530.7,9.2286977]
[1725023998308,3.60288,2530.8,2530.7,8.3639485]
[1725023998599,3.60288,2530.8,2530.7,9.22916981]
[1725023999708,1.36966,2531.1,2530.7,9.84724392]
[1725023999894,0.39505,2530.9,2530.8,1.46288981]
[1725024000099,1.38269,2530.9,2530.8,1.46288981]
[1725024000607,1.38269,2530.9,2530.8,0.5976685]
[1725024001009,1.38269,2530.9,2530.8,1.46298496]
[1725024001209,6.32153,2530.9,2530.8,1.46298496]
[1725024001506,6.32153,2530.9,2530.8,0.5976685]
[1725024004612,6.32153,2530.9,2530.7,3.42]
[1725024004613,1.38275,2530.8,2530.7,3.42]
[1725024005119,1.38275,2530.8,2530.7,4.8813779]
[1725024005612,1.38275,2530.8,2530.5,0.3951]
[1725024005613,1.38285,2530.6,2530.5,3.81511]
[1725024005802,0.3951,2530.6,2530.5,5.2765927]
[1725024006007,0.74979,2530.7,2530.6,0.3951]
[1725024006303,0.74978,2530.7,2530.6,1.8565827]
[1725024007300,0.39508,2530.8,2530.7,0.39508]
[1725024007506,0.39508,2530.8,2530.7,5.6386627]
[1725024008216,0.39508,2530.8,2530.7,3.6386627]
[1725024008615,0.3815,2531.0,2530.8,0.39505]
[1725024008919,0.77655,2531.0,2530.9,2.01728646]
[1725024009107,1.76415,2531.0,2530.9,2.01728646]
[1725024009302,1.76415,2531.0,2530.9,2.41233646]
[1725024009517,1.76415,2531.0,2530.9,3.2756383]
[1725024009701,0.39505,2531.0,2530.9,3.2756383]
[1725024009902,0.39505,2531.0,2530.9,7.2268383]
[1725024011119,0.39505,2531.0,2530.9,6.83005008]
[1725024011120,1.38265,2531.0,2530.9,6.83005008]
[1725024011416,2.37025,2531.0,2530.9,0.59621429]
[1725024011721,2.73975,2531.0,2530.9,0.59621429]
[1725024013119,6.69095,2531.0,2530.9,0.59621429]
[1725024013504,6.69095,2531.0,2530.9,2.01621429]
[1725024013505,1.38265,2531.0,2530.9,2.01621429]
[1725024013814,1.38265,2531.0,2530.9,1.42]
[1725024014516,1.38265,2531.0,2530.9,2.87921783]
[1725024014716,1.38265,2531.0,2530.9,2.01636434]
[1725024015014,1.38265,2531.0,2530.9,2.01640632]
[1725024016110,5.33385,2531.0,2530.9,0.59640632]
[1725024016618,6.32145,2531.0,2530.9,0.59640632]
[1725024016815,16.94925,2531.0,2530.9,7.89e-06]
[1725024017018,16.94925,2531.0,2530.4,0.00593401]
[1725024017019,2.37069,2530.5,2530.4,0.00593401]
[1725024017517,6.32269,2530.5,2530.4,0.00593401]
[1725024018417,6.32269,2530.5,2530.4,0.86819662]
[1725024018613,6.32269,2530.5,2530.4,0.00593401]
[1725024018817,6.32269,2530.5,2530.4,1.42593401]
[1725024019216,6.32269,2530.5,2530.4,2.28809552]
[1725024019619,6.32269,2530.5,2530.4,1.42593401]
[1725024019819,6.32269,2530.5,2530.4,2.28781317]
[1725024020020,6.70429,2530.5,2530.4,0.86781317]
[1725024020618,6.70429,2530.5,2530.4,0.00593401]
[1725024021509,6.70429,2530.5,2530.4,0.86736954]
[1725024021918,6.70429,2530.5,2530.4,0.00593401]
[1725024022115,5.7165,2530.5,2530.4,0.86717077]
[1725024026624,11.03530222,2530.5,2530.4,0.00593401]
[1725024027023,17.03530222,2530.5,2530.4,0.00593401]
[1725024027218,10.04751222,2530.5,2530.4,0.00593401]
[1725024028326,11.03530222,2530.5,2530.4,0.00593401]
[1725024028829,17.03530222,2530.5,2530.4,0.00593401]
[1725024030318,11.03530222,2530.5,2530.4,0.00593401]
[1725024032115,19.01089222,2530.5,2530.4,0.00593401]
[1725024032317,0.39526,2529.6,2529.5,1.13567]
[1725024032524,0.98803,2530.0,2529.7,0.39524]
[1725024032525,0.39524,2529.8,2529.7,0.39524]
[1725024032726,0.39524,2529.8,2529.7,1.85231184]
[1725024032928,0.39524,2529.8,2529.7,1.45707184]
[1725024034830,0.39524,2529.8,2529.7,1.55059418]
[1725024035031,0.39524,2529.8,2529.7,1.55098181]
[1725024035334,1.38331,2529.8,2529.7,0.68914378]
[1725024035536,1.74251,2529.8,2529.7,0.68914378]
[1725024035735,1.74251,2529.8,2529.7,1.55051084]
[1725024036136,1.74251,2529.8,2529.7,0.68914378]
[1725024038935,2.73058,2529.8,2529.7,0.68914378]
[1725024039236,6.68338,2529.8,2529.7,0.09352234]
[1725024039441,11.14174475,2529.8,2529.7,0.09352234]
[1725024040138,12.56174475,2529.8,2529.7,0.09352234]
[1725024041641,18.56174475,2529.8,2529.7,0.09352234]
[1725024042135,7.18894475,2529.8,2529.7,0.09352234]
[1725024042440,11.14174475,2529.8,2529.7,0.09352234]
[1725024045137,14.34954475,2529.8,2529.7,0.09352234]
[1725024047539,5.57918,2529.8,2529.7,0.09352234]
[1725024047739,5.93368,2529.8,2529.7,0.09352234]
[1725024048138,4.59111,2529.8,2529.7,0.09352234]
[1725024048338,4.59111,2529.8,2529.7,0.47332234]
[1725024049434,1.38331,2529.8,2529.7,0.47332234]
[1725024050143,0.39524,2529.8,2529.7,0.47332234]
[1725024050441,1.38331,2529.8,2529.7,0.47332234]
[1725024051434,10.49915847,2529.8,2529.7,0.09352234]
[1725024054956,0.39515,2530.3,2530.0,0.39519]
[1725024055139,0.39516,2530.2,2530.1,0.3872]
[1725024055542,8.77810616,2530.2,2530.1,0.3872]
[1725024055846,0.30168766,2530.0,2529.6,0.39525]
[1725024056050,0.30168766,2530.0,2529.7,0.97937132]
[1725024056238,0.30168766,2530.0,2529.7,0.3825]
[1725024056440,1.15849,2530.1,2529.7,0.3825]
[1725024056646,1.15849,2530.1,2529.7,0.77774]
[1725024056949,0.39519,2530.0,2529.7,0.3825]
[1725024057151,4.65274937,2530.0,2529.7,0.3825]
[1725024057352,4.25755937,2530.0,2529.7,0.3825]
[1725024057954,4.25755937,2530.0,2529.7,1.136]
[1725024058449,4.65276937,2530.0,2529.7,0.3825]
[1725024060444,4.65276937,2530.0,2529.7,0.77774]
[1725024060654,4.65276937,2530.0,2529.8,0.59701907]
[1725024060852,4.65276937,2530.0,2529.7,0.77774]
[1725024061355,4.65276937,2530.0,2529.8,0.59694038]
[1725024061544,4.65276937,2530.0,2529.7,0.77774]
[1725024061747,4.65276937,2530.0,2529.7,0.3825]
[1725024061950,4.65276937,2530.0,2529.7,0.77774]
[1725024062258,4.65276937,2530.0,2529.8,0.59707034]
[1725024062546,4.25755937,2530.0,2529.8,0.39522]
[1725024062754,4.25755937,2530.0,2529.9,0.5965726]
[1725024062947,4.25755937,2530.0,2529.8,0.39521]
[1725024063459,0.39513,2530.4,2530.1,0.39517]
[1725024063648,0.3633,2530.3,2530.2,0.3777]
[1725024063948,0.3633,2530.3,2530.2,2.19286]
[1725024063949,4.50921362,2530.3,2530.2,2.19286]
[1725024064146,4.50921362,2530.3,2530.2,2.78887974]
[1725024064147,0.3633,2530.3,2530.2,2.78887974]
[1725024064546,0.3633,2530.3,2530.2,3.16102127]
[1725024066058,0.7568,2530.4,2530.3,0.39515]
[1725024066245,0.39512,2530.5,2530.3,0.39515]
[1725024068757,5.61144038,2530.6,2530.3,0.39515]
[1725024069156,0.39512,2530.5,2530.3,0.39515]
[1725024069346,5.21633038,2530.6,2530.3,0.39515]
[1725024069546,5.61144038,2530.6,2530.3,0.39515]
[1725024070354,3.2078,2530.5,2530.2,0.7668]
[1725024070556,0.39515,2530.3,2530.2,0.3777]
[1725024071759,0.39515,2530.3,2530.2,0.9745812]
[1725024072264,0.39515,2530.3,2530.2,0.97467229]
[1725024074165,0.39515,2530.3,2530.2,0.3777]
[1725024074359,0.78155,2530.3,2530.2,0.3777]
[1725024074559,12.70929,2530.3,2530.2,0.59701403]
[1725024074755,0.39522,2529.8,2529.7,4.107]
[1725024074966,1.38329,2529.8,2529.7,0.59775178]
[1725024075155,1.38329,2529.8,2529.5,0.00593401]
[1725024075156,0.39526,2529.6,2529.5,0.00593401]
[1725024075462,1.38341,2529.6,2529.5,0.60394442]
[1725024075659,42.18341,2529.6,2529.5,0.60394442]
[1725024076159,42.18341,2529.6,2529.5,0.6038568]
[1725024076353,42.18341,2529.6,2529.5,0.00593401]
[1725024077554,42.18341,2529.6,2529.5,0.6040644]
[1725024077959,42.18341,2529.6,2529.5,0.00593401]
[1725024078359,47.12516,2529.6,2529.5,0.00593401]
[1725024079164,41.19526,2529.6,2529.5,0.00593401]
[1725024079467,41.19526,2529.6,2529.5,0.60428459]
[1725024080358,0.39526,2529.6,2529.5,0.60428459]
[1725024081464,0.39526,2529.6,2529.5,0.60470651]
[1725024081966,0.78455,2529.7,2529.5,0.99997651]
[1725024082266,0.78455,2529.7,2529.5,0.40120401]
[1725024082465,0.78455,2529.7,2529.6,0.3862]
[1725024083063,0.78455,2529.7,2529.6,0.98522068]
[1725024083263,0.78455,2529.7,2529.6,0.3862]
[1725024084063,0.78454,2529.7,2529.6,0.3862]
[1725024084767,0.78454,2529.7,2529.5,0.00593401]
[1725024084768,1.38341,2529.6,2529.5,0.00593401]
[1725024084976,0.98818,2529.5,2529.0,0.3569]
[1725024085263,0.98818,2529.5,2528.7,3.60319]
[1725024085264,0.39537,2528.9,2528.7,3.60319]
[1725024085462,0.39536,2529.0,2528.8,0.59943924]
[1725024085772,0.39536,2529.0,2528.7,3.60319]
[1725024085773,0.39536,2529.0,2528.9,0.59943924]
[1725024086273,0.00593401,2529.2,2528.9,4.01943924]
[1725024086565,0.00593401,2529.2,2529.1,0.39533]
[1725024086754,0.00593401,2529.2,2529.1,4.34893]
[1725024086955,0.40125401,2529.2,2529.1,0.59907302]
[1725024087167,0.40125401,2529.2,2529.0,1.15274]
[1725024087371,0.36443401,2529.2,2529.0,1.15274]
[1725024087572,0.75975401,2529.2,2529.0,1.15274]
[1725024087776,0.39533,2529.1,2529.0,0.3656]
[1725024088976,0.36443401,2529.2,2528.7,7.02912401]
[1725024088977,0.39536,2529.0,2528.7,7.02912401]
[1725024089271,0.39534,2529.1,2528.8,0.9945173]
[1725024089457,0.39535,2529.0,2528.9,0.9571473]
[1725024089657,0.39535,2529.0,2528.9,0.358]
[1725024089863,0.39538,2528.8,2528.7,0.00593401]
[1725024090063,0.39538,2528.8,2528.7,0.60513038]
[1725024091062,0.39538,2528.8,2528.7,0.60521712]
[1725024092562,0.39538,2528.8,2528.7,0.00593401]
[1725024092774,0.39538,2528.8,2528.7,0.60458843]
[1725024093065,1.38384,2528.8,2528.7,0.00593401]
[1725024093269,3.2078,2529.0,2528.7,0.00593401]
[1725024093270,4.1962,2529.0,2528.7,0.00593401]
[1725024093478,0.39537,2528.9,2528.7,0.00593401]
[1725024093980,0.39538,2528.8,2528.7,0.00593401]
[1725024094276,3.60315,2529.0,2528.7,0.00593401]
[1725024094490,3.2078,2529.0,2528.9,0.39536]
[1725024094774,3.60315,2529.0,2528.8,0.39537]
[1725024095367,3.60315,2529.0,2528.9,0.39536]
[1725024096265,0.39536,2529.0,2528.8,3.42]
[1725024096467,0.39536,2529.0,2528.9,0.39536]
[1725024096664,0.39536,2529.0,2528.9,0.77576]
[1725024096871,0.39536,2529.0,2528.9,0.3804]
[1725024098065,0.98838,2529.0,2528.7,0.00593401]
[1725024098468,0.98838,2529.0,2528.7,3.21373401]
[1725024098767,0.39538,2528.8,2528.7,0.40132401]
[1725024098966,0.39538,2528.8,2528.7,4.35572401]
[1725024099163,0.39537,2528.9,2528.8,0.39537]
[1725024099365,0.39536,2529.0,2528.8,0.39537]
[1725024099571,0.39536,2528.9,2528.8,0.39537]
[1725024100269,0.98835,2529.1,2529.0,0.39534]
[1725024100270,0.39534,2529.1,2529.0,0.39534]
[1725024100477,0.75976401,2529.2,2528.8,3.42]
[1725024100672,0.75975401,2529.2,2528.9,0.3684]
[1725024100971,0.75975401,2529.2,2529.1,0.39533]
[1725024101566,0.36443401,2529.2,2529.1,0.39533]
[1725024102073,0.00593401,2529.2,2529.1,0.39533]
[1725024102466,0.00593401,2529.2,2529.1,7.76893]
[1725024102678,0.00593401,2529.2,2529.1,3.81533]
[1725024102862,0.00593401,2529.2,2529.1,7.76893]
[1725024104274,0.00593401,2529.2,2529.1,3.81533]
[1725024105566,4.424,2529.4,2529.2,0.39531]
[1725024105769,4.424,2529.4,2529.0,0.7495]
[1725024105770,0.39533,2529.1,2529.0,1.14484]
[1725024105969,0.39533,2529.1,2529.0,0.76054]
[1725024106182,0.39533,2529.1,2529.0,4.71494]
[1725024106369,0.39533,2529.1,2529.0,0.3652]
[1725024106573,1.38367,2529.1,2529.0,0.3652]
[1725024106878,0.39536,2528.9,2528.8,0.3855]
[1725024107383,0.39536,2528.9,2528.8,4.3399]
[1725024107878,0.39536,2528.9,2528.8,4.73528]
[1725024108980,0.39536,2528.9,2528.8,4.3399]
[1725024109775,0.39538,2528.8,2528.7,3.82131401]
[1725024109977,0.75258,2528.8,2528.7,4.42026422]
[1725024110176,0.75258,2528.8,2528.7,8.37466422]
[1725024111294,0.75258,2528.8,2528.7,7.77571401]
[1725024111483,0.3572,2528.8,2528.7,8.37474596]
[1725024111784,0.75258,2528.8,2528.7,8.37474596]
[1725024112282,0.75258,2528.8,2528.7,4.02496596]
[1725024112687,1.13108,2528.8,2528.7,4.02496596]
[1725024114677,2.11954,2528.8,2528.7,0.60496596]
[1725024114992,2.11954,2528.8,2528.7,0.00593401]
[1725024116586,2.11954,2528.8,2528.7,0.60493521]
[1725024116883,6.07394,2528.8,2528.7,0.60493521]
[1725024117080,6.07394,2528.8,2528.7,0.00593401]
[1725024117081,7.0624,2528.8,2528.7,0.00593401]
[1725024117492,7.0624,2528.8,2528.7,0.60505669]
[1725024117985,7.0624,2528.8,2528.7,0.00593401]
[1725024118393,11.47352538,2528.8,2528.7,0.00593401]
[1725024118886,0.39546,2528.3,2528.2,3.5728]
[1725024119086,0.39546,2528.3,2528.2,5.03929518]
[1725024119684,1.76581,2528.3,2528.2,4.67429518]
[1725024119892,1.76581,2528.3,2528.2,0.5992901]
[1725024119893,4.97361,2528.3,2528.2,0.5992901]
[1725024120597,1.76581,2528.3,2528.2,0.5992901]
[1725024121088,1.76581,2528.3,2528.0,0.00593401]
[1725024121286,1.76581,2528.3,2528.1,0.86705959]
[1725024121287,0.3817,2528.3,2528.1,0.86705959]
[1725024121483,0.3817,2528.3,2528.2,1.86161185]
[1725024121789,0.3817,2528.3,2528.2,0.9946304]
[1725024122382,3.2078,2528.6,2528.5,0.39543]
[1725024122587,0.3954,2528.7,2528.5,0.99468942]
[1725024122886,0.39541,2528.6,2528.5,0.39543]
[1725024123082,0.39541,2528.6,2528.5,0.59907158]
[1725024123281,4.35061,2528.6,2528.5,0.59907158]
[1725024123483,4.56205311,2528.6,2528.5,0.59907158]
[1725024123679,1.0951,2528.9,2528.5,0.59907158]
[1725024123893,1.49047,2528.9,2528.6,0.96666866]
[1725024124091,1.49047,2528.9,2528.7,0.59906866]
[1725024124397,1.49047,2528.9,2528.8,0.99444866]